[Event "Faroes Open 2018"]
[Site "Sandavagur"]
[Date "2018.07.12"]
[Round "7"]
[White "Fjallheim, Benjamin Reinert"]
[Black "Jacobsen, Markus"]
[Result "1-0"]
[ECO "C50"]
[WhiteElo "1375"]
[BlackElo "1106"]
[Annotator "NA"]
[PlyCount "53"]
[EventDate "2018.07.07"]
[EventType "swiss"]
[EventCountry "FAI"]
[SourceTitle "playchess.com"]
[Source "ChessBase"]
[SourceQuality "1"]
[TimeControl "40/5400+30:900+30"]

1. e4 {[%emt 0:00:12]} e5 {[%emt 0:00:00]} 2. Nf3 {[%emt 0:00:27]} Nc6 {[%emt 0:00:44]} 3. Bc4 {[%emt 0:00:35]} Bc5 {[%emt 0:00:48]} 4. d3 {[%emt 0:00:50]} Nf6 {[%emt 0:01:27]} 5. Nc3 {[%emt 0:01:40]} O-O {[%emt 0:01:58]} 6. Bg5 {[%emt 0:01:43]} h6 {[%emt 0:03:05]} 7. Bh4 {[%emt 0:00:28]} b6 {[%emt 0:04:13]} 8. Nd5 {[%emt 0:01:40]} Be7 {[%emt 0:00:56]} 9. Nxe7+ {[%emt 0:01:06]} Qxe7 {[%emt 0:00:46]} 10. Qd2 {[%emt 0:03:27]} Nd4 {[%emt 0:06:08]} 11. Nxd4 {[%emt 0:02:50]} exd4 {[%emt 0:03:17]} 12. O-O-O {[%emt 0:08:02]} Qd6 {[%emt 0:02:16]} 13. h3 {[%emt 0:02:44]} Nh5 {[%emt 0:01:45]} 14. g4 {[%emt 0:02:29]} Qf4 {[%emt 0:01:37]} 15. Rde1 {[%emt 0:06:33]} g5 {[%emt 0:02:24]} 16. Qxf4 {[%emt 0:01:04]} Nxf4 {[%emt 0:00:44]} 17. Bg3 {[%emt 0:00:14]} Ng2 {[%emt 0:02:54]} 18. Ref1 {[%emt 0:00:20]} Nf4 {[%emt 0:01:07]} 19. Bxf4 {[%emt 0:01:39]} gxf4 {[%emt 0:00:22]} 20. g5 {[%emt 0:01:00]} Kg7 {[%emt 0:00:58]} 21. Rfg1 {[%emt 0:01:00]} h5 {[%emt 0:01:20]} 22. e5 {[%emt 0:03:18]} Bb7 {[%emt 0:03:22]} 23. Rh2 {[%emt 0:00:30]} f3 {[%emt 0:01:51]} 24. c3 {[%emt 0:01:17]} dxc3 {[%emt 0:02:56]} 25. bxc3 {[%emt 0:00:10]} Rae8 {[%emt 0:01:10]} 26. d4 Rh8 {R} 27. Rhh1 1-0

[Event "Faroes Open 2018"]
[Site "Sandavagur"]
[Date "2018.07.13"]
[Round "8"]
[White "Miezis, Normunds"]
[Black "Narayanan, Srinath"]
[Result "1/2-1/2"]
[ECO "A13"]
[WhiteElo "2463"]
[BlackElo "2549"]
[Annotator "RC"]
[PlyCount "96"]
[EventDate "2018.07.07"]
[EventType "swiss"]
[EventCountry "FAI"]
[SourceTitle "playchess.com"]
[Source "ChessBase"]
[SourceQuality "1"]
[TimeControl "40/5400+30:900+30"]

1. c4 {[%emt 0:00:00]} e6 {[%emt 0:00:59]} 2. e4 {[%emt 0:00:39]} d5 {[%emt 0:00:21]} 3. exd5 {[%emt 0:00:11]} exd5 {[%emt 0:00:01]} 4. d4 {[%emt 0:00:14]} Nf6 {[%emt 0:00:37]} 5. Nc3 {[%emt 0:01:31]} Bb4 {[%emt 0:03:15]} 6. Bd3 {[%emt 0:01:15]} O-O {[%emt 0:00:16]} 7. Nge2 {[%emt 0:00:35]} dxc4 {[%emt 0:00:26]} 8. Bxc4 {[%emt 0:00:18]} Nbd7 {[%emt 0:00:09]} 9. Bg5 {[%emt 0:07:25]} Nb6 {[%emt 0:03:13]} 10. Bd3 {[%emt 0:01:58]} h6 {[%emt 0:01:06]} 11. Bh4 {[%emt 0:00:57]} Be7 {[%emt 0:00:18]} 12. O-O {[%emt 0:06:52]} Nfd5 {[%emt 0:00:23]} 13. Bg3 {[%emt 0:01:08]} Bd6 {[%emt 0:01:13]} 14. Re1 {[%emt 0:05:46]} Bg4 {[%emt 0:14:00]} 15. f3 {[%emt 0:07:29]} Be6 {[%emt 0:03:24]} 16. Qd2 {[%emt 0:06:14]} Nxc3 {[%emt 0:05:07]} 17. bxc3 {[%emt 0:01:29]} Nc4 {[%emt 0:00:33]} 18. Qc1 {[%emt 0:04:07]} Nb6 {[%emt 0:14:53]} 19. Bf2 {[%emt 0:14:20]} Bc4 {[%emt 0:02:06]} 20. Be4 {[%emt 0:01:05]} Nd5 {[%emt 0:01:15]} 21. Bxd5 {[%emt 0:07:39]} Bxd5 {[%emt 0:00:45]} 22. c4 {[%emt 0:00:27]} Bc6 {[%emt 0:04:14]} 23. d5 {[%emt 0:03:10]} Bd7 {[%emt 0:00:28]} 24. c5 {[%emt 0:05:37]} Be5 {[%emt 0:01:01]} 25. Nc3 {[%emt 0:04:28]} Re8 {[%emt 0:01:34]} 26. f4 {[%emt 0:03:34]} Bf6 {[%emt 0:00:21]} 27. Qc2 {[%emt 0:00:44]} g6 {[%emt 0:17:32]} 28. Rxe8+ {[%emt 0:00:50]} Qxe8 {[%emt 0:00:18]} 29. Re1 {[%emt 0:00:59]} Qf8 {[%emt 0:00:05]} 30. h3 {[%emt 0:01:48]} Re8 {[%emt 0:01:22]} 31. Ne4 {[%emt 0:01:18]} Bd8 {[%emt 0:01:36]} 32. c6 {[%emt 0:02:46]} bxc6 {[%emt 0:00:56]} 33. dxc6 {[%emt 0:00:13]} Bf5 {[%emt 0:01:38]} 34. g4 {[%emt 0:01:17]} Bxe4 {[%emt 0:04:32]} 35. Rxe4 {[%emt 0:00:15]} Rxe4 {[%emt 0:00:34]} 36. Qxe4 {[%emt 0:00:08]} Bf6 {[%emt 0:00:07]} 37. Qd5 {[%emt 0:05:18]} Qa3 {[%emt 0:03:55]} 38. Kg2 {[%emt 0:00:37]} Qb2 {[%emt 0:00:17]} 39. g5 {[%emt 0:00:36]} hxg5 {[%emt 0:02:58]} 40. fxg5 {[%emt 0:00:08]} Be5 {[%emt 0:01:15]} 41. h4 {[%emt 0:17:18]} Qe2 {[%emt 0:16:20]} 42. Qd8+ {[%emt 0:01:35]} Kg7 {[%emt 0:00:17]} 43. Qd5 {[%emt 0:00:21]} a6 {[%emt 0:02:17]} 44. a4 {[%emt 0:01:27]} Qg4+ {[%emt 0:01:36]} 45. Kf1 {[%emt 0:00:21]} Qh3+ {[%emt 0:00:09]} 46. Ke2 {[%emt 0:00:20]} Qg4+ {[%emt 0:00:05]} 47. Kf1 {[%emt 0:00:23]} Qh3+ {[%emt 0:00:03]} 48. Ke2 {[%emt 0:00:12]} Qg4+ 1/2-1/2

[Event "Faroes Open 2018"]
[Site "Sandavagur"]
[Date "2018.07.13"]
[Round "8"]
[White "Nakar, Eylon"]
[Black "Nielsen, Hogni Egilstoft"]
[Result "1/2-1/2"]
[ECO "C78"]
[WhiteElo "2462"]
[BlackElo "2397"]
[Annotator "RC"]
[PlyCount "87"]
[EventDate "2018.07.07"]
[EventType "swiss"]
[EventCountry "FAI"]
[SourceTitle "playchess.com"]
[Source "ChessBase"]
[SourceQuality "1"]
[TimeControl "40/5400+30:900+30"]

1. e4 {[%emt 0:04:29]} e5 {[%emt 0:00:00]} 2. Nf3 {[%emt 0:00:04]} Nc6 {[%emt 0:00:00]} 3. Bb5 {[%emt 0:00:03]} a6 {[%emt 0:00:02]} 4. Ba4 {[%emt 0:00:04]} Nf6 {[%emt 0:01:12]} 5. O-O {[%emt 0:00:24]} b5 {[%emt 0:00:55]} 6. Bb3 {[%emt 0:00:02]} Be7 {[%emt 0:00:19]} 7. d3 {[%emt 0:10:27]} d6 {[%emt 0:04:10]} 8. a3 {[%emt 0:00:51]} Be6 {[%emt 0:02:42]} 9. Nc3 {[%emt 0:00:25]} Bxb3 {[%emt 0:05:34]} 10. cxb3 {[%emt 0:00:08]} O-O {[%emt 0:11:21]} 11. Be3 {[%emt 0:11:32]} d5 {[%emt 0:09:59]} 12. Bg5 {[%emt 0:01:54]} d4 {[%emt 0:15:08]} 13. Bxf6 {[%emt 0:01:57]} Bxf6 {[%emt 0:00:30]} 14. Nd5 {[%emt 0:00:02]} Nb8 {[%emt 0:07:17]} 15. b4 {[%emt 0:17:29]} c6 {[%emt 0:08:11]} 16. Nxf6+ {[%emt 0:00:06]} Qxf6 {[%emt 0:00:06]} 17. Nd2 {[%emt 0:04:27]} a5 {[%emt 0:06:04]} 18. bxa5 {[%emt 0:00:14]} Rxa5 {[%emt 0:03:57]} 19. Nb3 {[%emt 0:01:15]} Ra7 {[%emt 0:01:32]} 20. Nc5 {[%emt 0:01:52]} Na6 {[%emt 0:02:21]} 21. Qc2 {[%emt 0:01:43]} Qd6 {[%emt 0:00:45]} 22. Rfc1 {[%emt 0:04:23]} Rc8 {[%emt 0:01:43]} 23. g3 {[%emt 0:03:46]} Kf8 {[%emt 0:04:22]} 24. Nb3 {[%emt 0:13:32]} Nb8 {[%emt 0:03:58]} 25. Nc5 {[%emt 0:00:23]} Na6 {[%emt 0:00:10]} 26. Nb3 {[%emt 0:00:35]} Nb8 {[%emt 0:00:02]} 27. Nd2 {[%emt 0:02:46]} Nd7 {[%emt 0:03:31]} 28. Kg2 {[%emt 0:05:30]} Nb6 {[%emt 0:00:45]} 29. Qd1 {[%emt 0:02:23]} Na4 {[%emt 0:02:20]} 30. Rc2 {[%emt 0:01:40]} c5 {[%emt 0:00:37]} 31. Rac1 {[%emt 0:03:09]} Rac7 {[%emt 0:00:51]} 32. Qh5 {[%emt 0:04:23]} Kg8 {[%emt 0:01:15]} 33. b3 {[%emt 0:01:17]} Nc3 {[%emt 0:00:45]} 34. a4 {[%emt 0:01:20]} c4 {[%emt 0:01:17]} 35. dxc4 {[%emt 0:00:55]} bxa4 {[%emt 0:01:33]} 36. bxa4 {[%emt 0:00:15]} Nxa4 {[%emt 0:01:18]} 37. Ra2 {[%emt 0:00:22]} Nc3 {[%emt 0:01:00]} 38. Ra5 {[%emt 0:00:49]} f6 {[%emt 0:00:21]} 39. Rca1 {[%emt 0:01:07]} Qc6 {[%emt 0:01:02]} 40. Ra6 Qe8 {[%emt 0:00:25]} 41. Qg4 {[%emt 0:16:46]} Qd7 {[%emt 0:02:50]} 42. Qh5 {[%emt 0:00:00]} Qe8 {[%emt 0:02:32]} 43. Qg4 {[%emt 0:00:00]} Qd7 {[%emt 0:00:46]} 44. Qh5 {[%emt 0:00:00]} 1/2-1/2

[Event "Faroes Open 2018"]
[Site "Sandavagur"]
[Date "2018.07.13"]
[Round "8"]
[White "Jotic, Vladimir"]
[Black "Hruby, Milan"]
[Result "1/2-1/2"]
[ECO "A06"]
[WhiteElo "2387"]
[BlackElo "2031"]
[Annotator "NA"]
[PlyCount "62"]
[EventDate "2018.07.07"]
[EventType "swiss"]
[EventCountry "FAI"]
[SourceTitle "playchess.com"]
[Source "ChessBase"]
[SourceQuality "1"]
[TimeControl "40/5400+30:900+30"]

1. Nf3 {[%emt 0:00:00]} d5 {[%emt 0:00:00]} 2. g3 {[%emt 0:00:00]} Nf6 {[%emt 0:00:00]} 3. Bg2 {[%emt 0:00:00]} e6 {[%emt 0:00:08]} 4. O-O {[%emt 0:00:00]} c5 {[%emt 0:00:06]} 5. d3 {[%emt 0:00:14]} Nc6 {[%emt 0:00:20]} 6. Nbd2 {[%emt 0:00:06]} Be7 {[%emt 0:00:12]} 7. e4 {[%emt 0:00:06] LiveBook: 1772 Games} Qc7 {[%emt 0:02:48]} 8. Re1 {[%emt 0:01:15]} O-O {[%emt 0:00:59]} 9. e5 {[%emt 0:00:40]} Nd7 {[%emt 0:00:47]} 10. Qe2 {[%emt 0:00:02]} b5 {[%emt 0:00:45]} 11. Nf1 {[%emt 0:00:15]} a5 {[%emt 0:00:19]} 12. h4 {[%emt 0:00:34]} a4 {[%emt 0:00:46] C00: French: Unusual White 2nd moves} (12... b4 13. Bf4 a4 14. a3 bxa3 15. bxa3 Ba6 16. N1h2 Rfc8 17. h5 h6 18. Ng4 Kh7 19. c4 dxc4 20. dxc4 Bb7 {1-0 (29) Movsesian,S (2658)-Stern,R (2538) Berlin 2015}) 13. a3 {[%emt 0:00:02]} Ba6 {[%emt 0:02:40]} 14. Bf4 {[%emt 0:00:17]} Rfc8 {[%emt 0:00:34]} 15. Ne3 $146 {[%emt 0:11:30]} ({Predecessor:} 15. h5 Rab8 16. h6 g6 17. Ne3 Nd4 18. Nxd4 cxd4 19. Nxd5 exd5 20. e6 {1-0 (29) Vittorino,C (2300)-Franco,W (2205) Medellin 2000}) 15... Qd8 {[%emt 0:08:41]} 16. h5 $15 {[%emt 0:26:17]} h6 {[%emt 0:00:23]} 17. c3 {[%emt 0:06:55]} b4 {[%emt 0:05:27]} 18. c4 {[%emt 0:00:19]} Nb6 {[%emt 0:20:05]} 19. Nd2 {[%emt 0:15:01]} Nd4 {[%emt 0:09:00]} 20. Qg4 {[%emt 0:00:11]} Kh8 {[%emt 0:00:22]} 21. Rac1 {[%emt 0:04:07]} Rab8 {[%emt 0:04:58]} 22. axb4 {[%emt 0:07:28]} cxb4 {[%emt 0:01:18]} 23. cxd5 {[%emt 0:00:35]} Rxc1 {[%emt 0:04:53]} 24. Rxc1 {[%emt 0:00:11]} Bxd3 {[%emt 0:00:27]} 25. Re1 {[%emt 0:04:21]} Bf5 {[%emt 0:06:15]} 26. Nxf5 {[%emt 0:00:26]} exf5 {[%emt 0:00:07]} 27. Qd1 {[%emt 0:00:08]} Nxd5 {[%emt 0:01:09]} 28. Bxd5 {[%emt 0:04:11]} Qxd5 {[%emt 0:00:33]} 29. e6 {[%emt 0:00:12]} Rd8 {[%emt 0:08:18]} 30. exf7 {[%emt 0:00:15]} Qxf7 {[%emt 0:00:20]} 31. Qxa4 {[%emt 0:00:09]} Bf6 {[%emt 0:05:02]} 1/2-1/2

[Event "Faroes Open 2018"]
[Site "Sandavagur"]
[Date "2018.07.13"]
[Round "8"]
[White "Haubro, Martin"]
[Black "Nilssen, John Arni"]
[Result "0-1"]
[ECO "B32"]
[WhiteElo "2373"]
[BlackElo "2301"]
[Annotator "NA"]
[PlyCount "70"]
[EventDate "2018.07.07"]
[EventType "swiss"]
[EventCountry "FAI"]
[SourceTitle "playchess.com"]
[Source "ChessBase"]
[SourceQuality "1"]
[TimeControl "40/5400+30:900+30"]

1. e4 {[%emt 0:00:01]} c5 {[%emt 0:00:00]} 2. Nf3 {[%emt 0:00:03]} Nc6 {[%emt 0:00:00]} 3. d4 {[%emt 0:00:04]} cxd4 {[%emt 0:00:00]} 4. Nxd4 {[%emt 0:00:04]} e5 {[%emt 0:00:02]} 5. Nb5 {[%emt 0:00:04]} d6 {[%emt 0:00:06]} 6. g3 {[%emt 0:00:06]} Be7 {[%emt 0:00:08]} 7. Bg2 {[%emt 0:00:06] LiveBook: 28 Games} Nf6 {[%emt 0:00:06]} 8. O-O {[%emt 0:09:44]} Bg4 {[%emt 0:04:33]} 9. Qd3 {[%emt 0:01:32]} Rc8 {[%emt 0:07:45]} 10. N5c3 {[%emt 0:16:12]} O-O {[%emt 0:04:14]} 11. Be3 $11 {[%emt 0:05:27]} Qd7 {[%emt 0:13:59]} 12. Na3 {[%emt 0:01:35]} Nb4 {[%emt 0:07:55]} 13. Qd2 {[%emt 0:00:06]} a6 {[%emt 0:00:44]} 14. Nd5 {[%emt 0:12:09]} Nbxd5 {[%emt 0:00:16]} 15. exd5 {[%emt 0:00:05]} Bf5 {[%emt 0:01:56]} 16. c3 {[%emt 0:02:22]} Bd8 {[%emt 0:05:27]} 17. f4 {[%emt 0:06:41]} Ng4 {[%emt 0:09:24]} 18. Kh1 {[%emt 0:06:21]} Nxe3 {[%emt 0:04:06]} 19. Qxe3 {[%emt 0:00:04]} Bf6 {[%emt 0:02:25]} 20. Qf2 {[%emt 0:00:58]} Bd3 {[%emt 0:03:43]} 21. Rfe1 {[%emt 0:01:43]} Qf5 {[%emt 0:04:20]} 22. Rad1 {[%emt 0:02:13]} e4 {[%emt 0:06:40]} 23. Nc2 {[%emt 0:04:19]} Rfe8 {[%emt 0:05:11]} 24. Ne3 {[%emt 0:02:12]} Qd7 {[%emt 0:00:05]} 25. g4 {[%emt 0:01:15]} Bd8 {[%emt 0:06:54]} 26. g5 {[%emt 0:05:46]} Bb6 {[%emt 0:03:22]} 27. Qh4 {[%emt 0:00:05]} Qa4 {[%emt 0:01:21]} 28. Ng4 {[%emt 0:14:23]} Qc2 {[%emt 0:02:34]} 29. f5 {[%emt 0:01:00]} e3 {[%emt 0:03:13]} 30. Rxd3 {[%emt 0:00:35]} Qxd3 {[%emt 0:00:19]} 31. f6 {[%emt 0:00:12]} Qg6 {[%emt 0:03:11]} 32. Bf3 {[%emt 0:03:56]} e2 {[%emt 0:01:00]} 33. Kg2 {[%emt 0:01:05]} Be3 {[%emt 0:00:45]} 34. Qg3 {[%emt 0:02:38]} Bxg5 {[%emt 0:00:18]} 35. fxg7 {[%emt 0:00:04]} h5 {[%emt 0:00:40]} 0-1

[Event "Faroes Open 2018"]
[Site "Sandavagur"]
[Date "2018.07.13"]
[Round "8"]
[White "Nielsen, Rogvi Egilstoft"]
[Black "Vavulin, Maksim"]
[Result "0-1"]
[ECO "B06"]
[WhiteElo "2337"]
[BlackElo "2552"]
[Annotator "ChessBase"]
[PlyCount "106"]
[EventDate "2018.07.07"]
[EventType "swiss"]
[EventCountry "FAI"]
[SourceTitle "playchess.com"]
[Source "ChessBase"]
[SourceQuality "1"]
[TimeControl "40/5400+30:900+30"]

1. e4 {[%emt 0:00:23]} g6 {[%emt 0:00:40]} 2. d4 {[%emt 0:01:48]} Bg7 {[%emt 0:00:06]} 3. Bc4 {[%emt 0:01:40]} e6 {[%emt 0:01:17]} 4. Nf3 {[%emt 0:01:39]} d5 {[%emt 0:00:21]} 5. Bd3 {[%emt 0:03:48]} dxe4 {[%emt 0:00:19]} 6. Bxe4 {[%emt 0:00:07]} Nf6 {[%emt 0:00:14]} 7. Bd3 {[%emt 0:01:39]} c5 {[%emt 0:02:12]} 8. dxc5 {[%emt 0:02:35]} Qa5+ {[%emt 0:05:11]} 9. c3 {[%emt 0:09:32]} Qxc5 {[%emt 0:00:13]} 10. Be3 {[%emt 0:00:18]} Qc7 {[%emt 0:03:40]} 11. Na3 {[%emt 0:02:40]} a6 {[%emt 0:02:14]} 12. Qd2 {[%emt 0:07:30]} Ng4 {[%emt 0:05:23]} 13. Bg5 {[%emt 0:07:19]} h6 {[%emt 0:00:27]} 14. Bf4 {[%emt 0:02:13]} e5 {[%emt 0:01:56]} 15. Bg3 {[%emt 0:01:35]} Nc6 {[%emt 0:00:39]} 16. Be4 {[%emt 0:14:58]} O-O {[%emt 0:20:52]} 17. h3 {[%emt 0:05:20]} Rd8 {[%emt 0:03:29]} 18. Qe2 {[%emt 0:04:13]} Nf6 {[%emt 0:00:21]} 19. Bxc6 {[%emt 0:00:23]} Qxc6 {[%emt 0:00:15]} 20. O-O {[%emt 0:02:37]} Nh5 {[%emt 0:11:54]} 21. Bh2 {[%emt 0:05:59]} Re8 {[%emt 0:01:51]} 22. Rfe1 {[%emt 0:05:16]} b5 {[%emt 0:01:28]} 23. c4 {[%emt 0:01:54]} b4 {[%emt 0:08:57]} 24. Nc2 {[%emt 0:00:03]} a5 {[%emt 0:00:10]} 25. Ncd4 {[%emt 0:10:03]} Qc5 {[%emt 0:05:23]} 26. g4 {[%emt 0:02:30]} Bb7 {[%emt 0:04:52]} 27. Nb3 {[%emt 0:02:13]} Qc6 {[%emt 0:00:17]} 28. gxh5 {[%emt 0:00:14]} g5 {[%emt 0:02:57]} 29. Nbd2 {[%emt 0:01:19]} f5 {[%emt 0:02:33]} 30. c5 {[%emt 0:00:34]} e4 {[%emt 0:11:30]} 31. Qc4+ {[%emt 0:00:07]} Qd5 {[%emt 0:02:42]} 32. Ne5 {[%emt 0:02:45]} Bxe5 {[%emt 0:00:31]} 33. Bxe5 {[%emt 0:00:03]} Rxe5 {[%emt 0:00:07]} 34. Rac1 {[%emt 0:00:07]} Rc8 {[%emt 0:00:46]} 35. Nb3 {[%emt 0:00:43]} a4 {[%emt 0:01:06]} 36. Na5 {[%emt 0:01:03]} Qxc4 {[%emt 0:00:18]} 37. Rxc4 {[%emt 0:00:19]} Ba6 {[%emt 0:00:04]} 38. Rxb4 {[%emt 0:00:21]} Rexc5 {[%emt 0:01:11]} 39. Rxa4 Rc1 {[%emt 0:00:25]} 40. Rxc1 {[%emt 0:00:23]} Rxc1+ {[%emt 0:00:02]} 41. Kh2 {[%emt 0:06:19]} Rc2 {[%emt 0:01:09]} 42. Nb3 {[%emt 0:00:13]} Rxf2+ {[%emt 0:01:28]} 43. Kg1 {[%emt 0:00:28]} Rf1+ {[%emt 0:00:10]} 44. Kg2 {[%emt 0:00:10]} Bd3 {[%emt 0:00:33]} 45. Nc5 {[%emt 0:02:13]} Be2 {[%emt 0:02:41]} 46. Ra7 {[%emt 0:02:16]} Rb1 {[%emt 0:01:36]} 47. b3 {[%emt 0:01:01]} e3 {[%emt 0:03:34]} 48. h4 {[%emt 0:02:18]} f4 {[%emt 0:02:00]} 49. Ne4 {[%emt 0:01:02]} Rb2 {[%emt 0:01:10]} 50. Nf6+ {[%emt 0:00:41]} Kf8 {[%emt 0:00:02]} 51. hxg5 {[%emt 0:00:20]} Bg4+ {[%emt 0:00:51]} 52. Kg1 {[%emt 0:01:15]} Bf3 {[%emt 0:00:19]} 53. Rd7 {[%emt 0:01:09]} Rb1+ {[%emt 0:00:10]} 0-1

[Event "Faroes Open 2018"]
[Site "Sandavagur"]
[Date "2018.07.13"]
[Round "8"]
[White "Rodgaard, John"]
[Black "Fruehauf, Norbert"]
[Result "1-0"]
[ECO "A41"]
[WhiteElo "2319"]
[BlackElo "1963"]
[Annotator "NA"]
[PlyCount "55"]
[EventDate "2018.07.07"]
[EventType "swiss"]
[EventCountry "FAI"]
[SourceTitle "playchess.com"]
[Source "ChessBase"]
[SourceQuality "1"]
[TimeControl "40/5400+30:900+30"]

1. Nf3 {[%emt 0:00:00]} d6 {[%emt 0:00:00]} 2. d4 {[%emt 0:00:17]} Bg4 {[%emt 0:00:12]} 3. c4 {[%emt 0:02:27]} Bxf3 {[%emt 0:00:24]} 4. exf3 {[%emt 0:01:35]} g6 {[%emt 0:00:29]} 5. Nc3 {[%emt 0:01:34]} Bg7 {[%emt 0:00:27]} 6. Be3 {[%emt 0:01:43]} e6 {[%emt 0:00:47]} 7. Qb3 {[%emt 0:09:12]} Qc8 {[%emt 0:00:46]} 8. d5 {[%emt 0:05:42]} Ne7 {[%emt 0:06:12]} 9. Bd3 {[%emt 0:03:00]} O-O {[%emt 0:07:50]} 10. O-O {[%emt 0:00:58]} Nf5 {[%emt 0:02:32]} 11. Bxf5 {[%emt 0:06:41]} exf5 {[%emt 0:00:14]} 12. Rfe1 {[%emt 0:00:52]} b6 {[%emt 0:07:23]} 13. Bd2 $11 {[%emt 0:06:00]} Re8 {[%emt 0:03:08]} 14. Nb5 {[%emt 0:07:21]} Na6 {[%emt 0:04:38]} 15. Qa3 {[%emt 0:10:17]} Qb7 {[%emt 0:03:09]} 16. Bc3 {[%emt 0:06:47]} Bf8 {[%emt 0:04:44]} 17. b4 {[%emt 0:01:34]} Rac8 {[%emt 0:02:43]} 18. Bb2 {[%emt 0:03:30]} Bg7 {[%emt 0:00:48]} 19. Bxg7 {[%emt 0:00:56]} Kxg7 {[%emt 0:00:03]} 20. h4 {[%emt 0:03:03]} h5 {[%emt 0:01:57]} 21. Qa4 {[%emt 0:03:00]} Kf8 {[%emt 0:02:07]} 22. a3 {[%emt 0:01:05]} Ra8 {[%emt 0:04:45]} 23. Kf1 {[%emt 0:01:23]} Rxe1+ {[%emt 0:08:53]} 24. Rxe1 {[%emt 0:00:37]} Qc8 {[%emt 0:00:07]} 25. Qd1 {[%emt 0:07:08]} Qd8 {[%emt 0:04:41]} 26. Qd4 {[%emt 0:00:10]} Kg8 {[%emt 0:00:21]} 27. g3 {[%emt 0:00:25]} Nb8 {[%emt 0:01:51]} 28. Nxc7 {[%emt 0:01:02]} 1-0

[Event "Faroes Open 2018"]
[Site "Sandavagur"]
[Date "2018.07.13"]
[Round "8"]
[White "Nilssen, Ellen Fredericia"]
[Black "Nielsen, Suni I Horni"]
[Result "0-1"]
[ECO "D15"]
[WhiteElo "2152"]
[BlackElo "1487"]
[Annotator "NA"]
[PlyCount "84"]
[EventDate "2018.07.07"]
[EventType "swiss"]
[EventCountry "FAI"]
[SourceTitle "playchess.com"]
[Source "ChessBase"]
[SourceQuality "1"]
[TimeControl "40/5400+30:900+30"]

1. d4 {[%emt 0:00:00]} d5 {[%emt 0:00:10]} 2. c4 {[%emt 0:00:00]} c6 {[%emt 0:00:20]} 3. Nc3 {[%emt 0:00:16]} Nf6 {[%emt 0:02:04]} 4. Nf3 {[%emt 0:00:07]} Bg4 {[%emt 0:01:35]} 5. e3 {[%emt 0:05:25]} e6 {[%emt 0:02:49]} 6. Bd3 {[%emt 0:03:22]} Bd6 {[%emt 0:04:20]} 7. O-O {[%emt 0:04:28]} b6 {[%emt 0:07:49]} (7... O-O $11 {bleibt in der Remisbreite.}) 8. a3 {[%emt 0:09:12]} Qc7 {[%emt 0:05:36]} 9. h3 {[%emt 0:02:13]} Bh5 {[%emt 0:01:26]} 10. e4 {[%emt 0:07:00]} (10. cxd5 $16 Nxd5 11. Ne4) 10... dxe4 {[%emt 0:00:35]} 11. Nxe4 {[%emt 0:00:30]} Nxe4 {[%emt 0:00:16]} 12. Bxe4 $11 {[%emt 0:00:03]} Nd7 {[%emt 0:01:52]} 13. Re1 {[%emt 0:07:00]} Rd8 {[%emt 0:03:28]} 14. Bg5 {[%emt 0:10:17]} f6 {[%emt 0:02:54]} 15. Bd2 {[%emt 0:03:47]} O-O {[%emt 0:03:46]} 16. Qb3 {[%emt 0:05:38]} Rfe8 {[%emt 0:05:20]} 17. Rac1 {[%emt 0:03:25]} c5 {[%emt 0:01:09]} 18. Qc2 {[%emt 0:05:16]} f5 {[%emt 0:01:57]} 19. Bd3 {[%emt 0:04:53]} Bxf3 {[%emt 0:03:45]} 20. gxf3 {[%emt 0:00:17]} cxd4 {[%emt 0:00:09]} 21. Bg5 {[%emt 0:02:03]} Rc8 {[%emt 0:00:10]} 22. Qe2 {[%emt 0:04:18]} Bf4 {[%emt 0:04:23]} 23. Bxf4 {[%emt 0:02:12]} Qxf4 {[%emt 0:03:18]} 24. Bc2 {[%emt 0:01:00]} Rcd8 {[%emt 0:02:40]} 25. b4 {[%emt 0:04:44]} e5 {[%emt 0:03:20]} 26. Qd3 {[%emt 0:04:11]} e4 {[%emt 0:06:30]} 27. Qxd4 {[%emt 0:02:14]} Ne5 {[%emt 0:01:19]} 28. Qe3 {[%emt 0:00:43]} Nxf3+ {[%emt 0:02:18]} 29. Kf1 {[%emt 0:00:07]} Nh2+ {[%emt 0:00:53]} 30. Kg2 {[%emt 0:02:43]} Qxe3 {[%emt 0:01:57]} 31. Rxe3 {[%emt 0:02:31]} Nf3 {[%emt 0:00:50]} 32. c5 {[%emt 0:01:07]} bxc5 {[%emt 0:00:53]} 33. bxc5 {[%emt 0:00:02]} Rc8 {[%emt 0:00:35]} 34. Ba4 {[%emt 0:01:55]} Re7 {[%emt 0:01:02]} 35. Rec3 {[%emt 0:02:38]} Nd4 {[%emt 0:01:25]} 36. Rc4 {[%emt 0:00:34]} Ne6 {[%emt 0:01:10]} 37. Rd1 {[%emt 0:00:38]} Rxc5 {[%emt 0:01:38]} 38. Rxc5 {[%emt 0:01:23]} Nxc5 {[%emt 0:00:09]} 39. Bb5 {[%emt 0:00:04]} Kf7 {[%emt 0:01:51]} 40. Rd5 {[%emt 0:00:51]} Ne6 {[%emt 0:01:24]} 41. Rxf5+ {[%emt 0:01:15]} Kg6 {[%emt 0:00:15]} 42. Rd5 {[%emt 0:03:10]} Nf4+ {[%emt 0:00:09]} 0-1

[Event "Faroes Open 2018"]
[Site "Sandavagur"]
[Date "2018.07.13"]
[Round "8"]
[White "Simonsen, Hans Kristian"]
[Black "Nielsen, Torkil"]
[Result "1/2-1/2"]
[ECO "A01"]
[WhiteElo "2150"]
[BlackElo "2115"]
[Annotator "NA"]
[PlyCount "54"]
[EventDate "2018.07.07"]
[EventType "swiss"]
[EventCountry "FAI"]
[SourceTitle "playchess.com"]
[Source "ChessBase"]
[SourceQuality "1"]
[TimeControl "40/5400+30:900+30"]

1. b3 {[%emt 0:00:43]} e6 {[%emt 0:00:23]} 2. Bb2 {[%emt 0:00:07]} Nf6 {[%emt 0:00:17]} 3. f4 {[%emt 0:05:14]} d5 {[%emt 0:00:53]} 4. Nf3 {[%emt 0:00:07]} c5 {[%emt 0:00:57]} 5. e3 {[%emt 0:00:15]} Be7 {[%emt 0:02:23]} 6. Bb5+ {[%emt 0:00:20]} Bd7 {[%emt 0:00:53]} 7. Bxd7+ {[%emt 0:01:08]} Nbxd7 {[%emt 0:00:17]} 8. d3 {[%emt 0:00:48]} O-O {[%emt 0:02:27]} 9. Nbd2 {[%emt 0:00:43]} Qc7 {[%emt 0:04:20]} 10. Ne5 {[%emt 0:02:45]} b5 {[%emt 0:03:07]} 11. O-O {[%emt 0:00:39]} Nb6 {[%emt 0:04:14]} 12. Ng4 {[%emt 0:11:26]} Kh8 {[%emt 0:14:14]} 13. Bxf6 {[%emt 0:01:12]} Bxf6 $14 {[%emt 0:00:37]} 14. Nxf6 {[%emt 0:00:15]} gxf6 {[%emt 0:00:07]} 15. Qh5 {[%emt 0:07:45]} Rg8 {[%emt 0:08:05]} 16. Qh4 {[%emt 0:01:29]} Nd7 {[%emt 0:04:33]} 17. Rf3 {[%emt 0:04:22]} Rg7 {[%emt 0:01:03]} 18. Nf1 {[%emt 0:04:54]} f5 {[%emt 0:04:15]} 19. Rg3 {[%emt 0:00:55]} Qd8 {[%emt 0:02:23]} 20. Qxd8+ {[%emt 0:05:04]} Rxd8 {[%emt 0:00:34]} 21. Rxg7 {[%emt 0:00:54]} Kxg7 {[%emt 0:00:06]} 22. Nd2 {[%emt 0:00:06]} Nb6 {[%emt 0:03:21]} 23. c3 {[%emt 0:00:20]} Nd7 {[%emt 0:01:30]} 24. Nf3 {[%emt 0:00:02]} Nb6 {[%emt 0:00:13]} 25. Nd2 {[%emt 0:00:02]} Nd7 {[%emt 0:00:15]} 26. Nf3 {[%emt 0:00:08]} Nb6 {[%emt 0:00:12]} 27. Nd2 {[%emt 0:00:07]} Nd7 {[%emt 0:00:08]} 1/2-1/2